[Event "*** SCC Grand Prix: Titled Tuesday Blitz"]
[Site "Chess.com"]
[Date "2020.09.08"]
[Round "4"]
[White "ChessPromotionAlex"]
[Black "Aborigen_came"]
[Result "0-1"]
[WhiteElo "2484"]
[BlackElo "2711"]
[TimeControl "180+1"]
[EndTime "10:40:21 PDT"]
[Termination "Aborigen_came won on time"]

1. e4 {[%clk 0:03:00.9]} 1... Nf6 {[%clk 0:02:58.6]} 2. e5 {[%clk 0:02:58.7]}
2... Nd5 {[%clk 0:02:58.7]} 3. d4 {[%clk 0:02:58.3]} 3... Nb6 {[%clk 0:02:56.9]}
4. Nf3 {[%clk 0:02:54.2]} 4... d5 {[%clk 0:02:56.1]} 5. Bb5+ {[%clk 0:02:46.7]}
5... Bd7 {[%clk 0:02:54.8]} 6. Bd3 {[%clk 0:02:40.2]} 6... e6 {[%clk 0:02:48.6]}
7. Bg5 {[%clk 0:02:36.3]} 7... Be7 {[%clk 0:02:48]} 8. h4 {[%clk 0:02:21.9]}
8... h6 {[%clk 0:02:44.6]} 9. Bxe7 {[%clk 0:02:21.3]} 9... Qxe7 {[%clk
0:02:45.5]} 10. c3 {[%clk 0:02:15.5]} 10... c5 {[%clk 0:02:45.3]} 11. dxc5
{[%clk 0:02:04]} 11... Qxc5 {[%clk 0:02:46.2]} 12. Nbd2 {[%clk 0:02:01.7]} 12...
Nc6 {[%clk 0:02:30.3]} 13. Nb3 {[%clk 0:01:58.5]} 13... Qe7 {[%clk 0:02:29.6]}
14. Qe2 {[%clk 0:01:50.1]} 14... Na4 {[%clk 0:02:03.5]} 15. Nbd4 {[%clk
0:01:22.1]} 15... a6 {[%clk 0:01:59.9]} 16. O-O-O {[%clk 0:01:13]} 16... Nc5
{[%clk 0:01:50.6]} 17. Kb1 {[%clk 0:01:09.1]} 17... O-O-O {[%clk 0:01:46.2]} 18.
g3 {[%clk 0:00:57.2]} 18... Kb8 {[%clk 0:01:44.7]} 19. h5 {[%clk 0:00:53.9]}
19... Na5 {[%clk 0:01:44.1]} 20. Rhe1 {[%clk 0:00:52.4]} 20... Rc8 {[%clk
0:01:43.2]} 21. Bc2 {[%clk 0:00:48.7]} 21... Nc4 {[%clk 0:01:33.7]} 22. Nd2
{[%clk 0:00:45.3]} 22... Bb5 {[%clk 0:01:28.5]} 23. Nxb5 {[%clk 0:00:41.4]}
23... axb5 {[%clk 0:01:29.4]} 24. Nf3 {[%clk 0:00:25.3]} 24... Na4 {[%clk
0:01:24.7]} 25. Bxa4 {[%clk 0:00:22]} 25... bxa4 {[%clk 0:01:25.6]} 26. Rd4
{[%clk 0:00:20]} 26... Qc5 {[%clk 0:01:14.1]} 27. Rc1 {[%clk 0:00:19.8]} 27...
Rc6 {[%clk 0:00:57.6]} 28. Nd2 {[%clk 0:00:17.6]} 28... Nb6 {[%clk 0:00:36.9]}
29. Ka1 {[%clk 0:00:16.1]} 29... Qxd4 {[%clk 0:00:33.7]} 30. cxd4 {[%clk
0:00:15.9]} 30... Rxc1+ {[%clk 0:00:34.4]} 31. Nb1 {[%clk 0:00:16.5]} 31... Rhc8
{[%clk 0:00:31.1]} 32. Qb5 {[%clk 0:00:16.3]} 32... Nc4 {[%clk 0:00:21.4]} 33.
Qb4 {[%clk 0:00:16.2]} 33... Rc6 {[%clk 0:00:18.4]} 34. a3 {[%clk 0:00:12.4]}
34... Rb6 {[%clk 0:00:17]} 35. Qf8+ {[%clk 0:00:12.4]} 35... Ka7 {[%clk
0:00:15.3]} 36. Qc5 {[%clk 0:00:12.7]} 36... Ka6 {[%clk 0:00:14.6]} 37. b4
{[%clk 0:00:11.5]} 37... axb3 {[%clk 0:00:13.7]} 38. a4 {[%clk 0:00:11.3]} 38...
b2+ {[%clk 0:00:09.2]} 39. Ka2 {[%clk 0:00:11.3]} 39... Rxb1 {[%clk 0:00:08.7]}
40. Kxb1 {[%clk 0:00:05.8]} 40... Nd2+ {[%clk 0:00:08.5]} 41. Kc2 {[%clk
0:00:06.3]} 41... b1=Q+ {[%clk 0:00:08.8]} 42. Kxd2 {[%clk 0:00:07.2]} 42...
Qb4+ {[%clk 0:00:07.1]} 0-1

[Event "*** SCC Grand Prix: Titled Tuesday Blitz"]
[Site "Chess.com"]
[Date "2020.09.08"]
[Round "4"]
[White "Nafania1"]
[Black "tylityli"]
[Result "1/2-1/2"]
[WhiteElo "2407"]
[BlackElo "2242"]
[TimeControl "180+1"]
[EndTime "10:40:21 PDT"]
[Termination "Game drawn by repetition"]

1. e4 {[%clk 0:03:00.9]} 1... e5 {[%clk 0:02:59.2]} 2. Nf3 {[%clk 0:03:00.8]}
2... Nc6 {[%clk 0:02:58]} 3. Bb5 {[%clk 0:03:00.8]} 3... a6 {[%clk 0:02:57.1]}
4. Ba4 {[%clk 0:03:01.1]} 4... Nf6 {[%clk 0:02:56]} 5. O-O {[%clk 0:03:01.1]}
5... b5 {[%clk 0:02:55.1]} 6. Bb3 {[%clk 0:03:00.8]} 6... Be7 {[%clk 0:02:55.2]}
7. Re1 {[%clk 0:02:57.7]} 7... d6 {[%clk 0:02:54.6]} 8. c3 {[%clk 0:02:57.7]}
8... O-O {[%clk 0:02:53]} 9. d4 {[%clk 0:02:57.8]} 9... Nd7 {[%clk 0:02:52.7]}
10. Be3 {[%clk 0:02:45.4]} 10... Bf6 {[%clk 0:02:36.6]} 11. Nbd2 {[%clk
0:02:39.3]} 11... Na5 {[%clk 0:02:33.2]} 12. Bc2 {[%clk 0:02:37.8]} 12... Bb7
{[%clk 0:02:25.5]} 13. d5 {[%clk 0:02:11.3]} 13... c6 {[%clk 0:02:21.7]} 14. b4
{[%clk 0:02:03]} 14... Nc4 {[%clk 0:02:20.2]} 15. Nxc4 {[%clk 0:02:02.5]} 15...
bxc4 {[%clk 0:02:20.4]} 16. dxc6 {[%clk 0:01:59]} 16... Bxc6 {[%clk 0:02:18.4]}
17. Nd2 {[%clk 0:01:59.2]} 17... d5 {[%clk 0:02:08.8]} 18. exd5 {[%clk
0:01:57.6]} 18... Bxd5 {[%clk 0:02:07.9]} 19. Ne4 {[%clk 0:01:51.7]} 19... Be6
{[%clk 0:02:02]} 20. Nxf6+ {[%clk 0:01:22.1]} 20... Nxf6 {[%clk 0:01:58.6]} 21.
Bc5 {[%clk 0:01:18]} 21... Qxd1 {[%clk 0:01:48.2]} 22. Raxd1 {[%clk 0:01:17.4]}
22... Rfd8 {[%clk 0:01:48]} 23. Rxe5 {[%clk 0:01:15]} 23... Rxd1+ {[%clk
0:01:46.3]} 24. Bxd1 {[%clk 0:01:14.7]} 24... Rd8 {[%clk 0:01:46.4]} 25. Bd4
{[%clk 0:01:12.2]} 25... Nd5 {[%clk 0:01:41.7]} 26. Be2 {[%clk 0:00:33.3]} 26...
Nxb4 {[%clk 0:01:37.3]} 27. Ra5 {[%clk 0:00:29.6]} 27... Nc2 {[%clk 0:01:30.9]}
28. Rxa6 {[%clk 0:00:27.2]} 28... Nxd4 {[%clk 0:01:29.4]} 29. cxd4 {[%clk
0:00:27.2]} 29... g5 {[%clk 0:01:23.7]} 30. h4 {[%clk 0:00:25.5]} 30... h6
{[%clk 0:01:19.8]} 31. hxg5 {[%clk 0:00:25.4]} 31... hxg5 {[%clk 0:01:19.4]} 32.
Rc6 {[%clk 0:00:24.3]} 32... Rxd4 {[%clk 0:01:18.5]} 33. a4 {[%clk 0:00:24.3]}
33... c3 {[%clk 0:01:15.7]} 34. a5 {[%clk 0:00:20.6]} 34... Ra4 {[%clk
0:00:41.7]} 35. a6 {[%clk 0:00:19.4]} 35... Ra2 {[%clk 0:00:39.1]} 36. Bf3
{[%clk 0:00:15.8]} 36... c2 {[%clk 0:00:32.5]} 37. Kh2 {[%clk 0:00:16.2]} 37...
Kg7 {[%clk 0:00:27.4]} 38. Be4 {[%clk 0:00:16.4]} 38... Bb3 {[%clk 0:00:19.1]}
39. Bd3 {[%clk 0:00:14.7]} 39... Ra1 {[%clk 0:00:15.8]} 40. Bxc2 {[%clk
0:00:15]} 40... Bxc2 {[%clk 0:00:15.3]} 41. Rxc2 {[%clk 0:00:14.4]} 41... Rxa6
{[%clk 0:00:15.8]} 42. Kg3 {[%clk 0:00:14.7]} 42... Kg6 {[%clk 0:00:15.6]} 43.
f3 {[%clk 0:00:14.2]} 43... f6 {[%clk 0:00:15.4]} 44. Rc3 {[%clk 0:00:14.3]}
44... Rb6 {[%clk 0:00:15.5]} 45. Rc4 {[%clk 0:00:14.3]} 45... Rd6 {[%clk
0:00:15.5]} 46. Rc5 {[%clk 0:00:14.3]} 46... Ra6 {[%clk 0:00:15.2]} 47. Rc4
{[%clk 0:00:14.4]} 47... Rb6 {[%clk 0:00:15.1]} 48. Rc5 {[%clk 0:00:14.4]} 48...
Ra6 {[%clk 0:00:15.1]} 49. Rc4 {[%clk 0:00:14.4]} 49... Rb6 {[%clk 0:00:15.2]}
50. Rc5 {[%clk 0:00:14.7]} 50... Ra6 {[%clk 0:00:15.4]} 1/2-1/2

[Event "*** SCC Grand Prix: Titled Tuesday Blitz"]
[Site "Chess.com"]
[Date "2020.09.08"]
[Round "4"]
[White "chigorin28"]
[Black "mfwagnerpeixoto"]
[Result "1-0"]
[WhiteElo "2436"]
[BlackElo "2254"]
[TimeControl "180+1"]
[EndTime "10:40:22 PDT"]
[Termination "chigorin28 won on time"]

1. e4 {[%clk 0:03:00.9]} 1... e5 {[%clk 0:02:54.9]} 2. Bc4 {[%clk 0:03:00.3]}
2... Nf6 {[%clk 0:02:54]} 3. d3 {[%clk 0:03:00.8]} 3... Nc6 {[%clk 0:02:53.5]}
4. Nf3 {[%clk 0:03:01]} 4... Be7 {[%clk 0:02:53.3]} 5. c3 {[%clk 0:03:00.8]}
5... O-O {[%clk 0:02:53.2]} 6. O-O {[%clk 0:03:00.6]} 6... d6 {[%clk 0:02:53.6]}
7. Bb3 {[%clk 0:02:59.7]} 7... a6 {[%clk 0:02:49.3]} 8. Re1 {[%clk 0:02:59.9]}
8... Be6 {[%clk 0:02:46.8]} 9. Nbd2 {[%clk 0:02:56.8]} 9... Qd7 {[%clk
0:02:44.8]} 10. Nf1 {[%clk 0:02:56.8]} 10... Rfe8 {[%clk 0:02:35.9]} 11. Ng3
{[%clk 0:02:56.7]} 11... Bf8 {[%clk 0:02:35.7]} 12. Bg5 {[%clk 0:02:50.8]} 12...
Be7 {[%clk 0:02:35.4]} 13. h3 {[%clk 0:02:48.5]} 13... h6 {[%clk 0:02:34.4]} 14.
Be3 {[%clk 0:02:39.8]} 14... d5 {[%clk 0:02:29.5]} 15. Qe2 {[%clk 0:02:34.8]}
15... d4 {[%clk 0:02:18]} 16. Bxe6 {[%clk 0:02:34.6]} 16... fxe6 {[%clk
0:02:15.1]} 17. cxd4 {[%clk 0:02:31.8]} 17... exd4 {[%clk 0:02:13.5]} 18. Bd2
{[%clk 0:02:18.1]} 18... Bf8 {[%clk 0:02:09.4]} 19. Rac1 {[%clk 0:02:17]} 19...
Qf7 {[%clk 0:01:56.6]} 20. a3 {[%clk 0:02:05.2]} 20... Rad8 {[%clk 0:01:53.9]}
21. b4 {[%clk 0:02:05]} 21... Nd7 {[%clk 0:01:47.8]} 22. Nh2 {[%clk 0:01:50.6]}
22... Bd6 {[%clk 0:01:31.5]} 23. Rf1 {[%clk 0:01:43.3]} 23... Bf4 {[%clk
0:01:15.2]} 24. Bxf4 {[%clk 0:01:35.7]} 24... Qxf4 {[%clk 0:01:16.1]} 25. Nh5
{[%clk 0:01:32.5]} 25... Qf7 {[%clk 0:01:12.5]} 26. f4 {[%clk 0:01:32.3]} 26...
Kh7 {[%clk 0:01:10.8]} 27. g4 {[%clk 0:01:32.2]} 27... g6 {[%clk 0:01:02.3]} 28.
Ng3 {[%clk 0:01:31.6]} 28... Rf8 {[%clk 0:01:01]} 29. e5 {[%clk 0:01:04.2]}
29... Qe7 {[%clk 0:00:56.2]} 30. Qe4 {[%clk 0:00:56.3]} 30... Nb6 {[%clk
0:00:50.5]} 31. Nf3 {[%clk 0:00:42.2]} 31... Nd5 {[%clk 0:00:34.1]} 32. Nxd4
{[%clk 0:00:37.2]} 32... Ndxb4 {[%clk 0:00:26.7]} 33. Nxc6 {[%clk 0:00:31.4]}
33... Nxc6 {[%clk 0:00:27.6]} 34. f5 {[%clk 0:00:21.1]} 34... gxf5 {[%clk
0:00:18.4]} 35. gxf5 {[%clk 0:00:21.4]} 35... Qg5 {[%clk 0:00:14.8]} 36. Kh2
{[%clk 0:00:16.1]} 36... Rd4 {[%clk 0:00:13.3]} 37. Qf3 {[%clk 0:00:07]} 37...
Nxe5 {[%clk 0:00:08.2]} 38. Qxb7 {[%clk 0:00:07.5]} 38... Rxd3 {[%clk 0:00:07]}
39. Qxc7+ {[%clk 0:00:07.7]} 39... Rf7 {[%clk 0:00:06.1]} 40. Qxe5 {[%clk
0:00:07.8]} 40... Rd2+ {[%clk 0:00:05.9]} 41. Kg1 {[%clk 0:00:03.9]} 41... Rg7
{[%clk 0:00:04.9]} 42. Rf3 {[%clk 0:00:03.5]} 42... Ra2 {[%clk 0:00:02.4]} 43.
Rcf1 {[%clk 0:00:03.2]} 43... Qd2 {[%clk 0:00:02.5]} 44. R3f2 {[%clk 0:00:02.6]}
44... Qg5 {[%clk 0:00:01]} 45. Rxa2 {[%clk 0:00:01.9]} 1-0

[Event "*** SCC Grand Prix: Titled Tuesday Blitz"]
[Site "Chess.com"]
[Date "2020.09.08"]
[Round "4"]
[White "Rodalquilar"]
[Black "swimmerchess"]
[Result "0-1"]
[WhiteElo "2647"]
[BlackElo "2861"]
[TimeControl "180+1"]
[EndTime "10:40:25 PDT"]
[Termination "swimmerchess won on time"]

1. d4 {[%clk 0:03:00.9]} 1... Nf6 {[%clk 0:03:00]} 2. Bf4 {[%clk 0:03:00.6]}
2... g6 {[%clk 0:02:58.4]} 3. e3 {[%clk 0:03:00.9]} 3... Bg7 {[%clk 0:02:58]} 4.
Nf3 {[%clk 0:03:01.4]} 4... O-O {[%clk 0:02:57.2]} 5. Be2 {[%clk 0:03:02]} 5...
d6 {[%clk 0:02:57.2]} 6. O-O {[%clk 0:03:02.5]} 6... Nbd7 {[%clk 0:02:57.1]} 7.
h3 {[%clk 0:03:02.9]} 7... b6 {[%clk 0:02:54.4]} 8. Bh2 {[%clk 0:03:01.8]} 8...
Bb7 {[%clk 0:02:54.8]} 9. a4 {[%clk 0:03:02.1]} 9... a6 {[%clk 0:02:54.6]} 10.
Nbd2 {[%clk 0:03:02.5]} 10... Re8 {[%clk 0:02:54.6]} 11. c3 {[%clk 0:02:49.5]}
11... e5 {[%clk 0:02:53.4]} 12. Qb3 {[%clk 0:02:48.7]} 12... e4 {[%clk
0:02:51.2]} 13. Ne1 {[%clk 0:02:07.4]} 13... a5 {[%clk 0:02:44.8]} 14. Nc2
{[%clk 0:02:04.6]} 14... h5 {[%clk 0:02:41.8]} 15. Na3 {[%clk 0:01:52.9]} 15...
Nf8 {[%clk 0:02:35.7]} 16. Bc4 {[%clk 0:01:41.3]} 16... Ne6 {[%clk 0:02:32.1]}
17. Bb5 {[%clk 0:01:40.9]} 17... Rf8 {[%clk 0:02:26.8]} 18. Rfd1 {[%clk
0:01:34.3]} 18... Qe7 {[%clk 0:02:22.8]} 19. Bf1 {[%clk 0:01:27.8]} 19... h4
{[%clk 0:02:19.5]} 20. Rac1 {[%clk 0:01:27.1]} 20... Ng5 {[%clk 0:02:10.9]} 21.
c4 {[%clk 0:01:25.9]} 21... Bc8 {[%clk 0:02:10.6]} 22. c5 {[%clk 0:01:24.9]}
22... bxc5 {[%clk 0:02:05]} 23. dxc5 {[%clk 0:01:25]} 23... Be6 {[%clk
0:02:05.5]} 24. Qb7 {[%clk 0:01:11.6]} 24... dxc5 {[%clk 0:01:47.4]} 25. Qxc7
{[%clk 0:01:11.4]} 25... Qxc7 {[%clk 0:01:46.9]} 26. Bxc7 {[%clk 0:01:12.3]}
26... Nd5 {[%clk 0:01:47.1]} 27. Rxc5 {[%clk 0:01:02]} 27... Nxc7 {[%clk
0:01:42.9]} 28. Rxc7 {[%clk 0:01:02.9]} 28... Bxb2 {[%clk 0:01:42.6]} 29. Nac4
{[%clk 0:00:59.7]} 29... Bc3 {[%clk 0:01:34.5]} 30. Nb6 {[%clk 0:00:57.1]} 30...
Rab8 {[%clk 0:01:27.1]} 31. Rxc3 {[%clk 0:00:57.2]} 31... Rxb6 {[%clk 0:01:27]}
32. Rc5 {[%clk 0:00:57.9]} 32... f5 {[%clk 0:01:24.7]} 33. Rxa5 {[%clk
0:00:32.6]} 33... Rd6 {[%clk 0:01:18]} 34. Ra6 {[%clk 0:00:33]} 34... Rxa6
{[%clk 0:00:51.4]} 35. Bxa6 {[%clk 0:00:33.9]} 35... Rd8 {[%clk 0:00:52]} 36.
Be2 {[%clk 0:00:30.1]} 36... Ra8 {[%clk 0:00:49.8]} 37. Ra1 {[%clk 0:00:28]}
37... Nf7 {[%clk 0:00:48.1]} 38. a5 {[%clk 0:00:27.8]} 38... Ne5 {[%clk
0:00:47.6]} 39. a6 {[%clk 0:00:26.7]} 39... Kf7 {[%clk 0:00:47.5]} 40. Ra5
{[%clk 0:00:25.6]} 40... Nc6 {[%clk 0:00:46.4]} 41. Rc5 {[%clk 0:00:25.8]} 41...
Nb4 {[%clk 0:00:45.7]} 42. Rc7+ {[%clk 0:00:16.6]} 42... Kf6 {[%clk 0:00:45.8]}
43. a7 {[%clk 0:00:15.6]} 43... Nd5 {[%clk 0:00:45.9]} 44. Rb7 {[%clk
0:00:12.2]} 44... Bc8 {[%clk 0:00:42.8]} 45. Rb8 {[%clk 0:00:12.6]} 45... Rxa7
{[%clk 0:00:43.2]} 46. Rxc8 {[%clk 0:00:12.8]} 46... Ra2 {[%clk 0:00:44.1]} 47.
Rc6+ {[%clk 0:00:06.8]} 47... Kg7 {[%clk 0:00:40]} 48. Nxe4 {[%clk 0:00:04.7]}
48... Rxe2 {[%clk 0:00:38.6]} 49. Ng5 {[%clk 0:00:03.6]} 49... Nb4 {[%clk
0:00:31.7]} 50. Rc7+ {[%clk 0:00:03.8]} 50... Kf6 {[%clk 0:00:31.8]} 51. Nf3
{[%clk 0:00:04.7]} 51... g5 {[%clk 0:00:27.9]} 52. Rc6+ {[%clk 0:00:04.9]} 52...
Nxc6 {[%clk 0:00:27.8]} 0-1

[Event "*** SCC Grand Prix: Titled Tuesday Blitz"]
[Site "Chess.com"]
[Date "2020.09.08"]
[Round "4"]
[White "Abdimalik_Abdisalimov"]
[Black "blitis"]
[Result "1-0"]
[WhiteElo "2748"]
[BlackElo "2505"]
[TimeControl "180+1"]
[EndTime "10:40:26 PDT"]
[Termination "Abdimalik_Abdisalimov won on time"]

1. d4 {[%clk 0:03:00.9]} 1... g6 {[%clk 0:02:59.8]} 2. c4 {[%clk 0:03:00.4]}
2... f5 {[%clk 0:03:00.1]} 3. g3 {[%clk 0:03:00.1]} 3... Nf6 {[%clk 0:03:00.3]}
4. Bg2 {[%clk 0:03:01]} 4... Bg7 {[%clk 0:03:00.7]} 5. Nf3 {[%clk 0:03:01.9]}
5... O-O {[%clk 0:03:01.3]} 6. O-O {[%clk 0:03:02.8]} 6... d6 {[%clk 0:03:01.8]}
7. Nc3 {[%clk 0:03:03]} 7... Qe8 {[%clk 0:03:00.4]} 8. d5 {[%clk 0:03:03.2]}
8... Na6 {[%clk 0:02:59.2]} 9. Nd4 {[%clk 0:02:57.9]} 9... Nc5 {[%clk 0:02:54]}
10. b3 {[%clk 0:02:57.5]} 10... a5 {[%clk 0:02:49.4]} 11. Ba3 {[%clk 0:02:56.8]}
11... Na6 {[%clk 0:02:41]} 12. Rc1 {[%clk 0:02:56]} 12... g5 {[%clk 0:02:40.6]}
13. Qd2 {[%clk 0:02:54.1]} 13... Qh5 {[%clk 0:02:39.1]} 14. f4 {[%clk
0:02:41.6]} 14... gxf4 {[%clk 0:02:09.3]} 15. gxf4 {[%clk 0:02:42.5]} 15... Kh8
{[%clk 0:01:57.1]} 16. e3 {[%clk 0:02:37.2]} 16... Rg8 {[%clk 0:01:55.8]} 17.
Kh1 {[%clk 0:02:37.3]} 17... Ng4 {[%clk 0:01:39]} 18. Bf3 {[%clk 0:02:35.2]}
18... Bd7 {[%clk 0:01:32.7]} 19. Rg1 {[%clk 0:02:34]} 19... Bf6 {[%clk
0:01:28.5]} 20. Bb2 {[%clk 0:02:28.1]} 20... Rg6 {[%clk 0:01:27.3]} 21. Rg3
{[%clk 0:02:17.5]} 21... Rag8 {[%clk 0:01:25.2]} 22. Rcg1 {[%clk 0:02:15.2]}
22... Bh4 {[%clk 0:00:56.8]} 23. Nce2 {[%clk 0:01:20.5]} 23... Bf6 {[%clk
0:00:22.1]} 24. R1g2 {[%clk 0:01:06.9]} 24... Qh4 {[%clk 0:00:14.2]} 25. Kg1
{[%clk 0:01:02.5]} 25... Nxh2 {[%clk 0:00:10.6]} 26. Rxg6 {[%clk 0:00:44.3]}
26... Rxg6 {[%clk 0:00:11.5]} 27. Rxg6 {[%clk 0:00:43.9]} 27... hxg6 {[%clk
0:00:10.4]} 28. Bg2 {[%clk 0:00:43]} 28... Ng4 {[%clk 0:00:09.9]} 29. Nc3 {[%clk
0:00:36.8]} 29... Qh2+ {[%clk 0:00:08.4]} 30. Kf1 {[%clk 0:00:36.5]} 30... Nc5
{[%clk 0:00:08.1]} 31. Nf3 {[%clk 0:00:35.9]} 31... Qg3 {[%clk 0:00:07.1]} 32.
Nd1 {[%clk 0:00:22.2]} 32... Kg7 {[%clk 0:00:02.7]} 33. Bxf6+ {[%clk 0:00:21.8]}
33... exf6 {[%clk 0:00:03.1]} 34. Qxa5 {[%clk 0:00:22.1]} 34... Ne4 {[%clk
0:00:01.8]} 35. Qxc7 {[%clk 0:00:21]} 35... Nh2+ {[%clk 0:00:01.9]} 36. Nxh2
{[%clk 0:00:20.1]} 36... Qxh2 {[%clk 0:00:02.8]} 37. Qxd7+ {[%clk 0:00:20.1]}
37... Kh6 {[%clk 0:00:03.3]} 38. Bxe4 {[%clk 0:00:19.7]} 38... fxe4 {[%clk
0:00:02.7]} 39. Qg4 {[%clk 0:00:18.4]} 39... f5 {[%clk 0:00:02.4]} 40. Qg2
{[%clk 0:00:17.3]} 40... Qh5 {[%clk 0:00:02]} 41. Ke1 {[%clk 0:00:17.6]} 41...
Qh4+ {[%clk 0:00:01.8]} 42. Nf2 {[%clk 0:00:17.2]} 42... Kg7 {[%clk 0:00:02.3]}
43. Qh3 {[%clk 0:00:16.3]} 43... Qf6 {[%clk 0:00:02.9]} 44. Nd1 {[%clk
0:00:15.8]} 44... Qa1 {[%clk 0:00:03]} 45. Qg2 {[%clk 0:00:16.1]} 45... Qb1
{[%clk 0:00:03.1]} 46. Qb2+ {[%clk 0:00:15.9]} 46... Qxb2 {[%clk 0:00:01.6]} 47.
Nxb2 {[%clk 0:00:16.8]} 1-0

[Event "*** SCC Grand Prix: Titled Tuesday Blitz"]
[Site "Chess.com"]
[Date "2020.09.08"]
[Round "4"]
[White "pavelalexandru07"]
[Black "zmeeed67"]
[Result "1-0"]
[WhiteElo "2276"]
[BlackElo "2425"]
[TimeControl "180+1"]
[EndTime "10:40:27 PDT"]
[Termination "pavelalexandru07 won by checkmate"]

1. e4 {[%clk 0:03:00.9]} 1... Nc6 {[%clk 0:03:00]} 2. d4 {[%clk 0:02:56.9]} 2...
d6 {[%clk 0:03:00]} 3. c4 {[%clk 0:02:47.5]} 3... e5 {[%clk 0:02:58.8]} 4. d5
{[%clk 0:02:45.4]} 4... Nce7 {[%clk 0:02:58.4]} 5. Nc3 {[%clk 0:02:43.7]} 5...
Ng6 {[%clk 0:02:58.2]} 6. Bd3 {[%clk 0:02:38.4]} 6... Be7 {[%clk 0:02:58.1]} 7.
g3 {[%clk 0:02:37.8]} 7... Nf6 {[%clk 0:02:57.4]} 8. h4 {[%clk 0:02:37.5]} 8...
h6 {[%clk 0:02:57.6]} 9. f3 {[%clk 0:02:24.5]} 9... c5 {[%clk 0:02:41.1]} 10.
Be3 {[%clk 0:02:13.4]} 10... a6 {[%clk 0:02:40.9]} 11. Qe2 {[%clk 0:02:03.2]}
11... Bd7 {[%clk 0:02:38.8]} 12. O-O-O {[%clk 0:01:58.7]} 12... b5 {[%clk
0:02:34.3]} 13. cxb5 {[%clk 0:01:56.3]} 13... axb5 {[%clk 0:02:34.3]} 14. Bxb5
{[%clk 0:01:55.8]} 14... O-O {[%clk 0:02:09.6]} 15. Bc4 {[%clk 0:01:54]} 15...
Qa5 {[%clk 0:02:04.6]} 16. Qc2 {[%clk 0:01:44.4]} 16... Rfb8 {[%clk 0:02:03]}
17. Kd2 {[%clk 0:01:21.3]} 17... Rb4 {[%clk 0:02:01.1]} 18. b3 {[%clk
0:01:17.1]} 18... Bd8 {[%clk 0:01:38]} 19. Ke2 {[%clk 0:01:15.7]} 19... Qa7
{[%clk 0:01:37.3]} 20. a4 {[%clk 0:01:03.8]} 20... Ba5 {[%clk 0:01:35.6]} 21.
Kf2 {[%clk 0:00:56.7]} 21... Rf8 {[%clk 0:01:28.5]} 22. Nb5 {[%clk 0:00:54.6]}
22... Qb8 {[%clk 0:01:26.8]} 23. Bd2 {[%clk 0:00:50.5]} 23... Nh5 {[%clk
0:01:08.7]} 24. Bxb4 {[%clk 0:00:41.9]} 24... Bxb4 {[%clk 0:01:07.8]} 25. g4
{[%clk 0:00:32]} 25... Nhf4 {[%clk 0:01:05]} 26. h5 {[%clk 0:00:32.2]} 26... Ne7
{[%clk 0:01:00.2]} 27. Ne2 {[%clk 0:00:31.9]} 27... Nxe2 {[%clk 0:00:39.8]} 28.
Qxe2 {[%clk 0:00:31.5]} 28... Nc8 {[%clk 0:00:38.7]} 29. Rdg1 {[%clk 0:00:27.8]}
29... f6 {[%clk 0:00:37.6]} 30. Rd1 {[%clk 0:00:24.1]} 30... Kh8 {[%clk
0:00:31.6]} 31. Ra1 {[%clk 0:00:23.4]} 31... Ba5 {[%clk 0:00:30.1]} 32. Qd3
{[%clk 0:00:22.6]} 32... Ne7 {[%clk 0:00:26.7]} 33. Nc3 {[%clk 0:00:17.2]} 33...
Qc8 {[%clk 0:00:24.6]} 34. Ne2 {[%clk 0:00:17.1]} 34... Bxg4 {[%clk 0:00:19.2]}
35. fxg4 {[%clk 0:00:16.9]} 35... Qxg4 {[%clk 0:00:19.8]} 36. Qf3 {[%clk
0:00:17]} 36... Qg5 {[%clk 0:00:18.6]} 37. Rag1 {[%clk 0:00:15.6]} 37... Qd2
{[%clk 0:00:18.4]} 38. Qe3 {[%clk 0:00:15.2]} 38... Qb4 {[%clk 0:00:17.8]} 39.
Ng3 {[%clk 0:00:13.2]} 39... f5 {[%clk 0:00:17.5]} 40. Nxf5 {[%clk 0:00:11.9]}
40... Nxf5 {[%clk 0:00:17.7]} 41. exf5 {[%clk 0:00:12.3]} 41... Rxf5+ {[%clk
0:00:18.2]} 42. Kg3 {[%clk 0:00:12.8]} 42... Rg5+ {[%clk 0:00:15.8]} 43. Kh3
{[%clk 0:00:13.1]} 43... Rxh5+ {[%clk 0:00:16]} 44. Kg4 {[%clk 0:00:10.3]} 44...
Rxh1 {[%clk 0:00:13.1]} 45. Rxh1 {[%clk 0:00:09.9]} 45... Qb7 {[%clk 0:00:13.3]}
46. Rf1 {[%clk 0:00:09.6]} 46... Qd7+ {[%clk 0:00:13]} 47. Kg3 {[%clk
0:00:09.4]} 47... Bd8 {[%clk 0:00:11.5]} 48. Qe4 {[%clk 0:00:09.1]} 48... Bf6
{[%clk 0:00:11.6]} 49. Bd3 {[%clk 0:00:08.7]} 49... Qc7 {[%clk 0:00:10.6]} 50.
Qh7# {[%clk 0:00:08.6]} 1-0